bitfinex/quotes_ETHUSD_20250411
["timestamp","ask_amount","ask_price","bid_price","bid_amount"]
[1744333822115,6.60001,1515.2,1514.9,3.0]
[1744333822884,13.74895,1515.3,1514.9,9.60103]
[1744333823095,7.14937,1515.3,1514.9,16.2019]
[1744333823317,13.74906,1515.3,1514.9,9.60087]
[1744333823520,6.59979,1515.2,1514.8,12.66146]
[1744333823681,6.60031,1515.1,1514.8,6.60146]
[1744333823882,13.19984,1515.2,1514.8,6.60133]
[1744333824481,7.15022,1515.1,1514.8,6.60133]
[1744333824902,0.55,1515.1,1514.8,13.20271]
[1744333825105,1.5625,1515.2,1514.9,6.60102]
[1744333825319,0.55,1515.2,1514.9,13.2019]
[1744333825515,15.94211,1515.5,1515.1,6.59993]
[1744333826016,0.55,1515.4,1515.0,8.13991]
[1744333826186,0.55,1515.4,1514.9,13.20172]
[1744333826187,1.6511,1515.2,1514.9,13.20172]
[1744333826383,1.6511,1515.2,1514.9,6.60078]
[1744333826620,8.25113,1515.2,1514.8,8.22359]
[1744333826815,1.6511,1515.2,1514.9,6.60094]
[1744333827119,1.6511,1515.2,1515.0,6.6006]
[1744333828425,0.55,1515.1,1514.8,6.6015]
[1744333828622,7.15045,1515.1,1514.7,14.82577]
[1744333828918,0.55,1515.1,1514.8,13.20287]
[1744333829322,0.55,1515.1,1514.9,6.60108]
[1744333829492,1.6511,1515.2,1515.0,6.60065]
[1744333829692,8.80052,1515.3,1515.0,6.60065]
[1744333830455,2.2011,1515.3,1515.0,6.60046]
[1744333830601,1.6511,1515.5,1515.1,2.282146]
[1744333830796,1.6511,1515.5,1515.1,8.882306]
[1744333830989,7.14896,1515.4,1515.1,6.60016]
[1744333831189,0.55,1515.4,1515.0,4.6221]
[1744333831385,1.6511,1515.5,1515.2,6.59976]
[1744333831590,1.6511,1515.5,1515.2,13.19936]
[1744333831786,0.55,1515.5,1515.3,6.86848129]
[1744333832014,8.24918,1515.6,1515.3,6.86848129]
[1744333832403,0.55,1515.5,1515.3,6.86848129]
[1744333834126,0.55,1515.5,1515.3,0.26913129]
[1744333835824,1.6511,1515.6,1515.3,6.86846129]
[1744333836189,8.24833,1515.8,1515.4,13.19766]
[1744333836496,8.24833,1515.8,1515.5,0.26410611]
[1744333836721,6.59675,1515.9,1515.5,0.26410611]
[1744333836917,1.6511,1516.0,1515.6,14.81789]
[1744333836918,8.24764,1516.0,1515.6,14.81789]
[1744333837313,14.84418,1516.0,1515.7,0.26388451]
[1744333837707,14.84418,1516.0,1515.6,8.21998]
[1744333837911,8.79784,1515.9,1515.8,0.26388451]
[1744333838115,8.24827,1515.8,1515.7,0.23597778]
[1744333838356,6.5968,1515.9,1515.6,6.59804]
[1744333838514,6.59588,1516.1,1515.7,0.23553557]
[1744333838716,4.83662996,1516.2,1515.8,8.21923]
[1744333838717,19.67893996,1516.2,1515.8,8.21923]
[1744333839120,13.08323996,1516.2,1515.9,0.23546187]
[1744333839552,13.08323996,1516.2,1515.8,16.297872]
[1744333839732,4.83662996,1516.2,1516.0,0.23546187]
[1744333839936,13.08338996,1516.2,1515.8,15.99694]
[1744333840221,6.48772996,1516.2,1515.9,6.59668]
[1744333840524,4.83662996,1516.2,1516.0,0.23465126]
[1744333840732,4.83662996,1516.2,1516.0,6.83079126]
[1744333841126,4.83662996,1516.2,1516.0,6.83073126]
[1744333841326,4.83662996,1516.2,1516.1,8.20727]
[1744333841832,14.77136,1516.5,1516.1,8.44192126]
[1744333842253,8.17699,1516.5,1516.2,6.59543]
[1744333842418,1.5828,1516.5,1516.2,6.59543]
[1744333842820,0.55,1516.5,1516.3,0.23465126]
[1744333843118,8.17609,1516.7,1516.3,6.82943126]
[1744333843334,14.76962,1516.7,1516.3,6.82943126]
[1744333843535,0.55,1516.6,1516.3,6.82943126]
[1744333843741,4.83662996,1516.8,1516.5,6.59387]
[1744333843954,4.83662996,1516.8,1516.6,6.59349]
[1744333844248,4.83662996,1516.8,1516.6,0.23133636]
[1744333844451,6.59326,1516.7,1516.6,0.23133636]
[1744333844619,18.02276996,1516.8,1516.4,8.20586]
[1744333844818,11.42963996,1516.8,1516.5,0.22470699]
[1744333845129,6.59301,1516.8,1516.5,0.22470699]
[1744333845340,13.18608,1516.8,1516.5,0.22470699]
[1744333845543,6.59301,1516.8,1516.5,0.22470699]
[1744333845850,13.73511,1516.9,1516.5,6.81877699]
[1744333846054,13.73514,1516.9,1516.5,6.81868699]
[1744333846654,6.59297,1516.8,1516.5,0.22470699]
[1744333846843,6.59369,1516.6,1516.5,0.22470699]
[1744333848256,7.14345,1516.7,1516.5,0.22470699]
[1744333849757,13.73697,1516.7,1516.5,0.22470699]
[1744333850253,6.59253,1516.9,1516.6,6.59363]
[1744333850461,6.59253,1516.9,1516.7,1.6114]
[1744333850655,6.59253,1516.9,1516.7,0.22426532]
[1744333850957,6.59282,1516.8,1516.7,0.22426532]
[1744333851142,6.59282,1516.8,1516.5,8.17779]
[1744333851341,6.59282,1516.8,1516.7,0.22426532]
[1744333851549,6.59282,1516.8,1516.5,1.5838]
[1744333851755,6.59282,1516.8,1516.7,0.22367647]
[1744333852260,6.59282,1516.8,1516.5,8.995687]
[1744333852436,6.59282,1516.8,1516.7,0.22367647]
[1744333852632,13.18595,1516.8,1516.5,2.401617]
[1744333852840,6.59282,1516.8,1516.7,0.22367647]
[1744333853040,6.59361,1516.7,1516.4,4.5838]
[1744333853233,13.18722,1516.7,1516.5,0.22316128]
[1744333853625,6.59361,1516.7,1516.5,0.22316128]
[1744333856464,8.17475,1517.0,1516.7,6.59318]
[1744333856675,13.18416,1517.0,1516.8,1.5415]
[1744333856882,6.59195,1517.0,1516.8,0.2208787]
[1744333857166,13.18318,1517.1,1516.8,0.2208787]
[1744333857362,14.8286,1517.2,1516.8,6.8135387]
[1744333858137,14.8286,1517.2,1516.8,6.8135287]
[1744333858468,8.23719,1517.2,1516.9,6.59236]
[1744333858668,1.6461,1517.2,1516.8,1.71570057]
[1744333858867,1.6461,1517.2,1517.0,0.21977474]
[1744333858868,0.55,1517.2,1517.0,0.21977474]
[1744333859069,6.59111,1517.2,1516.9,6.59209]
[1744333859239,14.82786,1517.3,1517.1,0.21977474]
[1744333859442,0.55,1517.2,1517.0,1.5415]
[1744333859643,0.55,1517.2,1517.1,0.21977474]
[1744333860276,1.6461,1517.3,1517.1,0.21977474]
[1744333860492,15.2123213,1517.5,1517.1,7.64643321]
[1744333860778,6.59022,1517.4,1517.1,6.81112474]
[1744333862256,8.6223213,1517.5,1517.1,6.81109474]
[1744333862452,8.6223213,1517.5,1517.2,6.59103]
[1744333862794,8.6223213,1517.5,1517.3,0.21594936]
[1744333862952,8.78632,1517.4,1517.3,0.21594936]
[1744333863497,0.3863513,1517.5,1517.3,0.21587582]
[1744333863852,0.3863513,1517.5,1517.3,6.5905]
[1744333864052,0.9363513,1517.5,1517.4,0.2160229]
[1744333864355,0.9363513,1517.5,1517.3,1.5415]
[1744333864555,0.9363513,1517.5,1517.4,0.21484637]
[1744333864985,0.3863513,1517.5,1517.3,8.13204]
[1744333865189,0.3863513,1517.5,1517.4,6.80506637]
[1744333865554,0.3863513,1517.5,1517.4,8.34656637]
[1744333865745,0.3863513,1517.5,1517.4,11.34656637]
[1744333865946,0.3863513,1517.5,1517.4,19.60066447]
[1744333866176,0.3863513,1517.5,1517.4,25.66066447]
[1744333866392,0.3863513,1517.5,1517.4,29.43981909]
[1744333866899,0.3863513,1517.5,1517.4,34.17695684]
[1744333867459,0.1,1518.4,1518.0,6.5874]
[1744333867694,0.1,1518.4,1518.1,6.58711]
[1744333868037,6.58632,1518.3,1518.1,0.20278735]
[1744333868185,8.23284,1518.2,1518.1,0.20278735]
[1744333868394,1.6461,1518.2,1517.6,7.6015]
[1744333868556,6.58671,1518.3,1518.1,0.20278735]
[1744333868755,6.58662,1518.3,1517.8,8.12972]
[1744333868959,6.58662,1518.3,1518.2,0.20278735]
[1744333869195,1.7461,1518.4,1518.1,6.58718]
[1744333869369,0.1,1518.4,1518.2,0.20278735]
[1744333869567,0.1,1518.4,1518.2,6.78926735]
[1744333869779,0.1,1518.4,1518.2,8.07826974]
[1744333870001,0.1,1518.4,1518.3,0.20278735]
[1744333870186,0.1,1518.4,1518.3,6.78909735]
[1744333871661,0.1,1518.4,1518.3,0.20278735]
[1744333872101,0.1,1518.4,1518.2,6.58655]
[1744333872273,0.1,1518.4,1518.3,0.20278735]
[1744333872674,13.82215,1518.4,1518.0,6.5876]
[1744333872861,8.24145,1518.3,1517.9,14.34686]
[1744333873459,8.24145,1518.3,1517.9,20.93469]
[1744333873678,14.82817,1518.3,1517.9,6.58783]
[1744333873970,6.58683,1518.2,1517.9,6.58783]
[1744333874489,7.13735,1518.1,1517.7,9.58883]
[1744333874818,8.24289,1518.0,1517.6,8.18304]
[1744333875201,14.83077,1518.0,1517.6,8.18304]
[1744333875538,14.83077,1518.0,1517.4,8.18385]
[1744333875539,7.1381,1517.9,1517.4,8.18385]
[1744333875826,14.83063,1518.0,1517.6,6.58933]
[1744333876026,14.83063,1518.0,1517.6,6.5892]
[1744333876027,0.55,1517.9,1517.6,6.5892]
[1744333876209,1.6551,1518.0,1517.4,13.82074315]
[1744333876412,0.55,1518.1,1517.6,6.58934]
[1744333876619,6.58788,1518.0,1517.6,13.1785]
[1744333876818,6.58788,1518.0,1517.6,6.58916]
[1744333877137,14.83264,1517.8,1517.4,6.59018]
[1744333877466,7.13893,1517.7,1517.3,14.77474]
[1744333877732,6.58803,1518.0,1517.6,6.58905]
[1744333877733,1.6551,1518.0,1517.6,6.58905]
[1744333877913,0.55,1517.9,1517.6,6.58905]
[1744333878123,1.6551,1518.0,1517.7,6.5887]
[1744333878330,1.6551,1518.0,1517.6,6.58928]
[1744333878504,8.24305,1518.0,1517.6,6.58928]
[1744333878709,8.24305,1518.0,1517.6,13.17849]
[1744333878945,8.24305,1518.0,1517.7,6.58889]
[1744333879498,8.24305,1518.0,1517.6,7.907059]
[1744333879499,8.24305,1518.0,1517.6,7.906969]
[1744333879699,8.24305,1518.0,1517.7,6.5889]
[1744333879933,8.24305,1518.0,1517.6,6.58912]
[1744333880244,8.24305,1518.0,1517.6,13.17825]
[1744333881042,1.6551,1518.0,1517.8,6.58833]
[1744333881242,1.6551,1518.0,1517.7,6.58891]
[1744333881442,1.6551,1518.2,1517.7,5.092718]
[1744333881609,1.6551,1518.2,1517.9,6.58783]
[1744333881817,1.6551,1518.2,1517.9,6.58772]
[1744333882025,8.24185,1518.2,1517.8,14.77039]
[1744333882322,6.58634,1518.3,1517.9,6.58804]
[1744333882652,8.34099,1518.4,1518.0,13.17476]
[1744333882812,1.7551,1518.4,1518.2,6.58652]
[1744333883346,1.7551,1518.4,1518.2,13.17308]
[1744333883953,1.7551,1518.4,1518.2,13.17303]
[1744333884148,1.7551,1518.4,1518.2,6.58651]
[1744333884354,0.1,1518.4,1518.2,13.17306]
[1744333884510,0.1,1518.4,1518.2,7.90223016]
[1744333885324,0.1,1518.4,1518.2,9.49593016]
[1744333885573,0.1,1518.4,1518.2,16.08251016]
[1744333885712,0.1,1518.4,1518.2,16.08253016]
[1744333886047,0.1,1518.4,1518.2,9.49593016]
[1744333886647,0.1,1518.4,1518.2,7.90223016]
[1744333887052,0.1,1518.4,1518.3,7.37653302]
[1744333887250,0.1,1518.4,1518.2,7.90223016]
[1744333887456,0.1,1518.4,1518.1,14.78246]
[1744333887753,6.68607,1518.4,1518.0,20.924]
[1744333888052,0.1,1518.4,1518.1,6.58715]
[1744333888254,0.1,1518.4,1518.1,6.76670214]
[1744333888431,6.68591,1518.4,1518.1,0.17955214]
[1744333889023,8.12974,1518.2,1518.1,0.17955214]
[1744333889225,14.71675,1518.2,1517.8,20.89582737]
[1744333889426,6.58726,1518.1,1517.9,0.17471293]
[1744333889626,6.58726,1518.1,1517.8,14.33534]
[1744333889821,8.12974,1518.2,1517.9,0.17559267]
[1744333890019,1.543,1518.2,1517.9,13.1757]
[1744333890247,2.193,1518.4,1518.1,6.58718]
[1744333890447,6.58638,1518.3,1518.0,6.58761]
[1744333890642,13.1731,1518.3,1518.1,0.17566599]
[1744333890847,6.58686,1518.2,1517.9,8.68026]
[1744333891043,6.58638,1518.3,1518.0,0.17566599]
[1744333891433,0.1,1518.4,1518.1,1.6085]
[1744333891647,0.1,1518.4,1518.2,6.5866]
[1744333891958,0.1,1518.4,1518.3,0.17647255]
[1744333892353,6.68587,1518.4,1518.3,0.17647255]
[1744333892560,13.27203,1518.4,1518.0,9.58739]
[1744333892862,6.58644,1518.3,1518.0,11.575009]
[1744333893082,0.1,1518.4,1518.1,6.76352255]
[1744333893365,0.1,1518.4,1518.2,1.6085]
[1744333893526,6.68591,1518.4,1518.2,1.6085]
[1744333893859,0.1,1518.4,1518.3,0.17647255]
[1744333894854,0.1,1518.4,1518.3,6.76278255]
[1744333895023,0.1,1518.4,1518.3,10.11297958]
[1744333895226,0.1,1518.4,1518.3,3.52666958]
[1744333896660,0.1,1518.4,1518.3,10.11297958]
[1744333901637,0.1,1518.4,1518.3,0.17647255]
[1744333901827,0.1,1518.4,1518.3,6.76278255]
[1744333902734,0.1,1518.4,1518.3,9.76278255]
[1744333903065,0.1,1518.4,1518.3,11.40248255]
[1744333904670,0.1,1518.4,1518.3,17.46248255]
[1744333904874,0.1,1518.4,1518.3,21.16445926]
[1744333905060,0.3863513,1519.0,1518.9,6.58371]
[1744333905265,0.3863513,1519.0,1518.9,0.15703994]
[1744333905460,0.3863513,1519.0,1518.8,8.22372]
[1744333905663,0.3863513,1519.0,1518.9,0.15703994]
[1744333905859,1.9627513,1519.0,1518.7,15.96912]
[1744333906064,0.3863513,1519.0,1518.8,6.74100994]
[1744333906264,0.3863513,1519.0,1518.8,6.74098994]
[1744333906481,0.3863513,1519.0,1518.8,0.15703994]
[1744333906789,0.3863513,1519.0,1518.9,1.6397]
[1744333906948,0.3863513,1519.0,1518.8,9.74098994]
[1744333907137,0.3863513,1519.0,1518.9,1.12909018]
[1744333907341,0.3863513,1519.0,1518.9,0.15499119]
[1744333907543,8.5460213,1519.0,1518.9,0.15499119]
[1744333907743,6.58398,1518.9,1518.7,7.745]
[1744333908278,6.58395,1518.9,1518.7,7.745]
[1744333908488,8.5460413,1519.0,1518.7,14.32941]
[1744333908489,1.9627513,1519.0,1518.7,14.32941]
[1744333908671,1.9627513,1519.0,1518.7,16.368351]
[1744333908980,0.3863513,1519.0,1518.8,8.22358]
[1744333909139,0.3863513,1519.0,1518.8,14.80757]
[1744333909480,0.3863513,1519.0,1518.9,6.58371]
[1744333909684,0.3863513,1519.0,1518.9,8.064439]
[1744333909885,0.3863513,1519.0,1518.9,1.480729]
[1744333910550,0.3863513,1519.0,1518.9,8.064439]
[1744333910750,0.3863513,1519.0,1518.9,1.480729]
[1744333911686,0.3863513,1519.0,1518.9,8.064439]
[1744333911904,0.3863513,1519.0,1518.9,12.704139]
[1744333912063,0.3863513,1519.0,1518.9,17.44127675]
[1744333912655,0.3863513,1519.0,1518.9,12.704139]
[1744333913158,0.3863513,1519.0,1518.9,13.1885943]
[1744333913885,0.3863513,1519.0,1518.9,23.98573205]
[1744333914274,0.3863513,1519.0,1518.9,19.2485943]
[1744333914477,0.3863513,1519.0,1518.9,26.9835943]
[1744333914789,0.3863513,1519.0,1518.9,16.4428653]
[1744333915485,0.3863513,1519.0,1518.9,7.735]
[1744333915791,0.3863513,1519.0,1518.8,7.07296215]
[1744333916089,0.3863513,1519.0,1518.9,6.58371]
[1744333917070,0.3863513,1519.0,1518.9,12.83184775]
[1744333917406,0.3863513,1519.0,1518.9,16.12122428]
[1744333917970,0.3863513,1519.0,1518.9,16.25573952]
[1744333918191,0.3863513,1519.0,1518.9,19.25573952]
[1744333919102,0.3863513,1519.0,1518.9,25.31573952]
[1744333919782,0.3863513,1519.0,1518.9,26.01573952]
[1744333924703,0.3863513,1519.0,1518.9,25.31573952]
[1744333928306,0.3863513,1519.0,1518.9,20.65910623]
[1744333928604,0.3863513,1519.0,1518.9,25.31573952]
[1744333929904,1.6524,1519.7,1519.5,6.58092]
[1744333930075,1.6524,1519.7,1519.5,13.16184]
[1744333930279,1.6524,1519.7,1519.6,6.71197157]
[1744333930481,1.6574,1519.8,1519.6,13.29264157]
[1744333931375,1.6574,1519.8,1519.7,6.58024]
[1744333931575,1.6574,1519.8,1519.7,6.71059235]
[1744333932377,1.6574,1519.8,1519.7,0.13035235]
[1744333932572,8.23721,1519.8,1519.5,6.58111]
[1744333932778,8.23721,1519.8,1519.7,0.13035235]
[1744333933008,8.23721,1519.8,1519.5,6.58111]
[1744333933472,1.6574,1519.8,1519.6,0.13035235]
[1744333934202,1.6574,1519.8,1519.6,6.71099235]
[1744333934512,1.6574,1519.8,1519.6,0.13035235]
[1744333934686,6.58024,1519.7,1519.6,0.13035235]
[1744333935084,8.12674,1519.7,1519.6,0.13035235]
[1744333935290,1.5465,1519.7,1519.4,6.58147]
[1744333935481,1.5465,1519.7,1519.5,0.1298413]
[1744333935681,1.5465,1519.7,1519.5,7.21629788]
[1744333935884,1.5465,1519.7,1519.5,6.7108113]
[1744333936086,1.5465,1519.7,1519.5,13.2917813]
[1744333936285,1.5465,1519.7,1519.6,6.58067]
[1744333936585,0.005,1519.8,1519.6,7.90981813]
[1744333936820,0.005,1519.8,1519.6,6.7105113]
[1744333937223,0.005,1519.8,1519.7,6.58024]
[1744333937516,0.005,1519.8,1519.7,6.70905903]
[1744333937719,0.005,1519.8,1519.7,0.12881903]
[1744333938418,8.13131,1519.8,1519.7,0.12881903]
[1744333938725,14.71138,1519.8,1519.7,0.12757797]
[1744333938919,14.71138,1519.8,1519.5,0.48854052]
[1744333939227,14.71138,1519.8,1519.7,0.12757797]
[1744333939383,14.71138,1519.8,1519.5,0.48854052]
[1744333939583,8.13131,1519.8,1519.7,0.12757797]
[1744333939782,8.13131,1519.8,1519.6,0.00656939]
[1744333940011,8.13131,1519.8,1519.7,0.12757797]
[1744333940488,8.68131,1519.8,1519.7,0.12757797]
[1744333940691,8.67674,1519.7,1519.6,7.36e-06]
[1744333940900,6.58378,1518.9,1518.7,13.78]
[1744333941104,1.5465,1519.0,1518.7,13.78]
[1744333941617,8.13005,1519.0,1518.7,20.36449]
[1744333941913,8.13005,1519.0,1518.7,7.72]
[1744333942414,8.13005,1519.0,1518.7,14.30452]
[1744333942613,1.5465,1519.0,1518.9,6.58371]
[1744333942800,1.5465,1519.2,1518.9,13.16723]
[1744333943004,1.5465,1519.2,1519.0,6.58324]
[1744333943615,1.5465,1519.2,1518.8,6.58408]
[1744333943819,6.58298,1519.1,1518.7,26.04699746]
[1744333944012,6.58298,1519.1,1518.7,19.46242746]
[1744333944319,1.5465,1519.0,1518.7,19.46242746]
[1744333944889,1.5465,1519.0,1518.7,14.80579417]
[1744333945085,1.5465,1518.8,1518.5,6.58543]
[1744333945290,1.5465,1518.8,1518.6,6.58485]
[1744333945597,1.5465,1518.8,1518.6,13.16962]
[1744333945797,1.5465,1518.8,1518.6,6.58478]
[1744333946516,1.5167,1519.0,1518.7,6.58457]
[1744333946721,1.5167,1519.0,1518.7,13.16914]
[1744333946925,1.5167,1519.0,1518.7,1.78257733]
[1744333947092,1.5167,1519.0,1518.8,6.58386]
[1744333947418,1.5167,1519.0,1518.7,6.58454]
[1744333947620,1.5167,1519.0,1518.8,6.58399]
[1744333948009,1.5167,1519.0,1518.7,6.58436]
[1744333948213,8.10005,1519.0,1518.6,6.58472]
[1744333948595,8.10005,1519.0,1518.7,6.58451]
[1744333949028,14.68363,1519.0,1518.6,6.58472]
[1744333949403,8.10005,1519.0,1518.6,13.16956]
[1744333949752,1.5167,1519.0,1518.5,3.16022231]
[1744333950030,1.5167,1519.0,1518.8,6.58399]
[1744333950527,1.5167,1519.0,1518.9,6.58371]
[1744333950906,1.5913,1519.1,1518.9,6.58371]
[1744333951101,1.5913,1519.1,1518.9,6.58353]
[1744333951929,1.5913,1519.4,1519.1,6.58253]
[1744333952830,6.58252,1519.2,1518.9,13.13272467]
[1744333953196,1.5913,1519.1,1518.8,13.16806]
[1744333953417,8.1733,1519.3,1518.8,6.58371]
[1744333953637,8.17387,1519.2,1518.9,6.5837]
[1744333954736,1.5913,1519.2,1518.9,6.58357]
[1744333955529,1.5913,1519.2,1519.0,6.58312]
[1744333955937,1.5913,1519.2,1518.9,6.58357]
[1744333956432,8.17373,1519.2,1518.9,6.58357]
[1744333956639,8.17373,1519.2,1518.8,13.16804]
[1744333956950,6.58202,1519.3,1518.6,12.64458]
[1744333956951,0.55,1519.3,1518.6,12.64458]
[1744333957157,8.17517,1518.9,1518.6,12.64458]
[1744333957314,1.5913,1518.9,1518.6,6.58458]
[1744333957946,1.5913,1518.9,1518.7,6.58447]
[1744333958725,8.17516,1518.9,1518.5,7.07720598]
[1744333958937,6.58243,1519.2,1518.6,0.18387952]
[1744333958938,6.58457,1518.7,1518.6,0.18387952]
[1744333959455,8.17587,1518.7,1518.4,14.30869]
[1744333959608,8.17587,1518.7,1518.6,0.18387952]
[1744333959818,6.5852,1518.6,1518.2,6.58674]
[1744333960039,6.5852,1518.6,1518.2,13.1732]
[1744333960563,8.17593,1518.7,1518.3,6.58593]
[1744333960853,8.17596,1518.7,1518.4,6.58563]
[1744333961556,14.76076,1518.7,1518.3,6.58623]
[1744333962214,1.509,1518.6,1518.3,13.17234]
[1744333962954,1.509,1518.6,1518.4,0.18387952]
[1744333963151,1.509,1518.6,1518.3,6.58611]
[1744333963528,1.509,1518.6,1518.4,0.18387952]
[1744333963729,1.509,1518.6,1518.3,6.58611]
[1744333963961,1.509,1518.6,1518.4,0.18387952]
[1744333964473,1.509,1518.6,1518.3,6.58615]
[1744333964674,1.509,1518.6,1518.5,0.18387952]
[1744333964972,1.509,1518.6,1518.3,6.58615]
[1744333965172,1.509,1518.6,1518.5,0.18387952]
[1744333965471,1.509,1518.6,1518.3,6.58613]
[1744333965703,1.509,1518.6,1518.5,0.18387952]
[1744333965976,1.509,1518.6,1518.5,0.2451727]
[1744333966178,1.509,1518.6,1518.4,6.58567]
[1744333966365,1.509,1518.6,1518.5,0.2451727]
[1744333966873,1.509,1518.6,1518.3,6.58613]
[1744333967082,1.509,1518.6,1518.5,6.8306127]
[1744333967385,6.58518,1518.6,1518.5,0.2451727]
[1744333967782,6.58518,1518.6,1518.2,6.58659]
[1744333967783,6.58518,1518.6,1518.2,13.17329]
[1744333968082,6.58518,1518.6,1518.1,14.03343329]
[1744333968083,15.22945,1518.6,1518.5,0.2451727]
[1744333968243,8.09588,1518.2,1517.9,6.58795]
[1744333968444,6.58719,1518.1,1517.8,14.31241]
[1744333969136,8.09588,1518.2,1518.0,6.58744]
[1744333969137,1.509,1518.2,1518.0,6.58744]
[1744333969338,1.509,1518.2,1518.0,13.17486]
[1744333969593,1.509,1518.2,1518.0,6.58742]
[1744333970744,1.509,1518.2,1518.1,6.58718]
[1744333970971,1.6017,1518.5,1518.2,6.58667]
[1744333971173,6.58591,1518.4,1518.1,6.58718]
[1744333971785,8.18719,1518.5,1518.1,6.58718]
[1744333972194,8.18719,1518.5,1518.1,13.17436]
[1744333972355,6.58593,1518.4,1518.1,6.58718]
[1744333972556,8.18719,1518.5,1518.1,13.17418]
[1744333972881,1.6017,1518.5,1518.3,6.58614]
[1744333973216,1.6017,1518.5,1518.3,13.17225]
[1744333974580,1.6017,1518.5,1518.3,6.58611]
[1744333974785,1.6017,1518.6,1518.4,6.5857]
[1744333974985,1.6017,1518.7,1518.5,6.58526]
[1744333975696,1.6017,1518.7,1518.5,13.1705]
[1744333975901,1.6017,1518.7,1518.5,6.58524]
[1744333976189,1.5382,1518.9,1518.6,6.58482]
[1744333976601,1.5382,1518.9,1518.7,6.58457]
[1744333977155,8.12108,1519.1,1518.5,10.4391982]
[1744333977354,1.5382,1518.9,1518.6,6.58477]
[1744333977660,1.5382,1518.9,1518.5,10.4391982]
[1744333977661,14.70611,1518.9,1518.5,14.7866142]
[1744333977861,6.58501,1518.6,1518.5,7.715]
[1744333978106,6.58458,1518.7,1518.5,7.715]
[1744333979119,6.58458,1518.7,1518.4,6.55051945]
[1744333979263,1.5382,1518.5,1518.3,7.715]
[1744333979977,8.12366,1518.5,1518.3,7.715]
[1744333980398,1.5382,1518.5,1518.3,7.715]
[1744333980697,1.5382,1518.7,1518.3,7.715]
[1744333980898,1.5382,1518.8,1518.5,6.58516]
[1744333981217,1.5382,1518.8,1518.6,6.58499]
[1744333981366,1.5382,1518.8,1518.5,6.58516]
[1744333981569,8.12251,1518.8,1518.4,8.16534]
[1744333981778,6.5849,1518.7,1518.3,13.17246]
[1744333981978,1.5382,1518.6,1518.3,6.58615]
[1744333982179,6.58637,1518.3,1518.1,6.06]
[1744333982380,6.58602,1518.4,1518.0,14.30242]
[1744333982581,1.5382,1518.2,1518.0,7.715]
[1744333983102,8.1251,1518.2,1518.0,7.715]
[1744333983608,8.12412,1518.4,1518.0,14.30245]
[1744333983765,1.5382,1518.6,1518.3,6.58606]
[1744333983963,6.58471,1518.7,1518.4,6.58585]
[1744333984279,8.12291,1518.7,1518.4,6.58585]
[1744333984482,1.5382,1518.7,1518.4,13.17151]
[1744333984678,1.5382,1518.7,1518.3,8.16574]
[1744333984679,8.12279,1518.7,1518.3,8.16574]
[1744333985110,14.70774,1518.7,1518.3,8.16562]
[1744333985273,1.5382,1518.7,1518.4,6.58565]
[1744333985474,1.5382,1518.9,1518.5,3.0]
[1744333985669,1.5382,1518.9,1518.6,6.58479]
[1744333986191,8.12197,1518.9,1518.6,6.58479]
[1744333986802,6.58432,1518.8,1518.5,9.58537]
[1744333987038,8.12197,1518.9,1518.5,9.5853]
[1744333987196,8.12197,1518.9,1518.6,6.58499]
[1744333987373,1.5382,1518.9,1518.7,6.58457]
[1744333987706,2.0882,1519.0,1518.7,6.58441]
[1744333988209,2.0882,1519.0,1518.7,13.16884]
[1744333989177,1.5382,1519.0,1518.8,6.58395]
[1744333989681,1.5382,1519.0,1518.9,6.58371]
[1744333990029,1.5382,1519.2,1518.9,13.16719]
[1744333990378,1.5382,1519.2,1519.0,6.58325]
[1744333990586,1.5382,1519.4,1519.1,6.58246]
[1744333991012,1.5382,1519.4,1519.2,6.58231]
[1744333992133,6.47542996,1519.6,1519.3,6.58197]
[1744333992340,6.47542996,1519.6,1519.3,6.58178]
[1744333992646,8.22049,1519.4,1519.1,6.58281]
[1744333992947,8.22049,1519.4,1519.0,6.5831]
[1744333993149,1.6388,1519.4,1518.9,1.5795]
[1744333993451,1.6388,1519.4,1518.9,7.713]
[1744333993647,11.23774329,1519.5,1518.8,6.58396]
[1744333993648,8.22136,1519.2,1518.8,6.58396]
[1744333993948,1.6388,1519.2,1518.9,6.58353]
[1744333994355,1.6388,1519.2,1518.9,13.16706]
[1744333994571,1.5982,1519.2,1518.9,13.16708]
[1744333994850,8.18062,1519.2,1518.9,6.58353]
[1744333995252,1.5982,1519.2,1518.9,6.58353]
[1744333995420,1.5982,1519.2,1518.9,13.16703]
[1744333995848,1.5982,1519.2,1518.9,14.483733]
[1744333996048,6.58312,1519.1,1518.7,13.16904]
[1744333996263,6.58312,1519.1,1518.8,6.58406]
[1744333996465,14.76322,1519.2,1518.8,6.58399]
[1744333996635,14.76322,1519.2,1518.8,6.58394]
[1744333996636,8.18067,1519.2,1518.8,6.58394]
[1744333996976,8.18067,1519.2,1518.9,6.58356]
[1744333997188,1.5982,1519.2,1519.0,6.58326]
[1744333997486,1.5982,1519.2,1519.0,13.16652]
[1744333997771,6.58199,1519.3,1519.1,6.58284]
[1744333997772,1.6388,1519.3,1519.1,6.58284]
[1744334001063,8.22039,1519.4,1519.1,6.58284]
[1744334001540,8.22039,1519.4,1519.1,6.58266]
[1744334001740,8.22039,1519.4,1519.1,6.58275]
[1744334002042,14.80217,1519.4,1519.0,13.16638]
[1744334002374,14.80217,1519.4,1519.0,8.062808]
[1744334002589,8.2209,1519.3,1518.9,6.58361]
[1744334002743,6.58255,1519.2,1518.9,6.58361]
[1744334003074,6.58255,1519.2,1518.9,13.16714]
[1744334003274,8.2209,1519.3,1519.0,6.58327]
[1744334003442,1.6388,1519.3,1519.0,14.48322]